bitfinex/quotes_SOLUSD_20250802
["timestamp","ask_amount","ask_price","bid_price","bid_amount"]
[1754119235317,0.03,163.32,163.31,95.61576315]
[1754119235711,0.03,163.32,163.31,78.83107918]
[1754119236611,0.03,163.32,163.31,96.28576315]
[1754119239404,0.03,163.34,163.32,16.78468397]
[1754119239612,0.03,163.34,163.33,69.55576315]
[1754119240502,0.7,163.34,163.33,52.77107918]
[1754119240897,0.03,163.34,163.33,52.77107918]
[1754119241697,0.03,163.34,163.33,69.55576315]
[1754119241912,0.03,163.34,163.33,70.22576315]
[1754119245025,0.67,163.4,163.33,70.22576315]
[1754119245026,0.67,163.4,163.36,26.0]
[1754119245227,0.67,163.4,163.39,9.01107918]
[1754119246317,0.67,163.44,163.39,53.40107918]
[1754119246519,4.10160704,163.47,163.43,9.01107918]
[1754119246826,4.10160704,163.47,163.44,9.01107918]
[1754119247144,0.67,163.46,163.45,9.01107918]
[1754119248311,0.67,163.46,163.41,43.72]
[1754119248516,42.91,163.48,163.44,9.01107918]
[1754119249024,42.91,163.48,163.45,9.01107918]
[1754119249230,9.01107918,163.5,163.44,26.0]
[1754119249529,13.10828588,163.49,163.44,26.0]
[1754119249721,9.01107918,163.49,163.44,35.01107918]
[1754119250106,13.10834071,163.48,163.44,26.0]
[1754119250310,9.01107918,163.48,163.44,26.0]
[1754119250512,0.67,163.47,163.44,26.0]
[1754119250732,9.68107918,163.47,163.42,9.01107918]
[1754119250907,9.01107918,163.44,163.36,0.67]
[1754119251108,9.01107918,163.42,163.37,9.01107918]
[1754119251307,0.67,163.41,163.37,9.01107918]
[1754119251630,0.67,163.4,163.38,9.01107918]
[1754119251929,0.67,163.42,163.38,9.01107918]
[1754119252117,9.01107918,163.43,163.38,9.01107918]
[1754119252314,0.67,163.42,163.38,9.01107918]
[1754119252519,0.67,163.41,163.38,9.01107918]
[1754119253037,0.67,163.4,163.38,9.01107918]
[1754119253326,0.67,163.39,163.38,9.01107918]
[1754119253835,0.67,163.41,163.38,9.01107918]
[1754119255310,0.67,163.43,163.4,9.01107918]
[1754119255516,0.67,163.45,163.41,9.01107918]
[1754119255838,0.67,163.44,163.41,9.01107918]
[1754119256016,0.67,163.44,163.4,9.01107918]
[1754119256514,0.67,163.44,163.39,26.0]
[1754119256515,0.03,163.48,163.43,9.01107918]
[1754119256723,0.67,163.47,163.44,9.01107918]
[1754119256908,0.03,163.46,163.44,5.39978954]
[1754119257525,0.03,163.46,163.45,5.39978954]
[1754119258914,0.03,163.46,163.45,8.9984933]
[1754119259509,0.03,163.46,163.44,8.9984933]
[1754119259831,9.6684933,163.45,163.4,8.9984933]
[1754119260034,0.67,163.44,163.4,8.9984933]
[1754119260246,0.67,163.43,163.39,34.9984933]
[1754119260555,0.67,163.43,163.39,35.6684933]
[1754119260830,9.6784933,163.45,163.41,8.9984933]
[1754119261128,9.6784933,163.45,163.4,8.9984933]
[1754119261129,0.68,163.44,163.4,8.9984933]
[1754119261724,4.78801083,163.44,163.4,8.9984933]
[1754119262431,4.78801083,163.44,163.4,9.6884933]
[1754119262736,4.10801083,163.44,163.41,8.9984933]
[1754119262933,8.9984933,163.45,163.41,8.9984933]
[1754119262934,0.71,163.46,163.41,8.9984933]
[1754119263138,8.9984933,163.45,163.41,8.9984933]
[1754119263332,4.10918796,163.44,163.41,8.9984933]
[1754119263734,0.03,163.46,163.43,8.9984933]
[1754119264035,4.13918796,163.46,163.44,8.9984933]
[1754119264722,4.13918796,163.46,163.44,0.69]
[1754119264917,4.13918796,163.46,163.42,0.69]
[1754119265133,4.13918796,163.46,163.43,9.6884933]
[1754119265528,8.9984933,163.44,163.4,8.9984933]
[1754119265714,0.68,163.43,163.39,8.9984933]
[1754119266041,9.6784933,163.45,163.4,34.9984933]
[1754119266238,4.79593964,163.44,163.4,34.9984933]
[1754119266748,4.79593964,163.44,163.4,35.6884933]
[1754119266949,4.11593964,163.44,163.4,35.6884933]
[1754119267134,4.11593964,163.44,163.4,34.9984933]
[1754119267445,4.11593964,163.44,163.42,8.9984933]
[1754119267627,4.11593964,163.45,163.42,8.9984933]
[1754119268722,4.11593964,163.45,163.41,9.6884933]
[1754119269857,4.11593964,163.45,163.42,0.69]
[1754119270034,4.11593964,163.45,163.44,8.9984933]
[1754119270356,4.14593964,163.46,163.43,8.9984933]
[1754119270852,13.14443294,163.46,163.4,26.0]
[1754119271146,8.9984933,163.44,163.39,9.6884933]
[1754119271331,150.89593964,163.45,163.42,8.9984933]
[1754119271332,189.76,163.45,163.42,8.9984933]
[1754119271540,4.11749164,163.44,163.43,0.69]
[1754119271752,0.03,163.46,163.44,0.69]
[1754119272058,4.14749164,163.46,163.44,9.6884933]
[1754119272228,0.03,163.46,163.44,9.6884933]
[1754119272428,4.14749164,163.46,163.44,9.6884933]
[1754119272668,0.03,163.46,163.44,9.6884933]
[1754119272848,4.14749164,163.46,163.44,9.6884933]
[1754119273049,0.03,163.46,163.44,9.6884933]
[1754119273565,0.03,163.46,163.43,8.9984933]
[1754119273781,0.03,163.46,163.44,8.9984933]
[1754119273928,0.03,163.46,163.44,9.6884933]
[1754119274636,0.03,163.46,163.45,9.6884933]
[1754119276258,0.03,163.46,163.45,35.6884933]
[1754119276456,0.03,163.46,163.45,26.47317727]
[1754119276658,5.12495289,163.57,163.49,26.0]
[1754119276957,4.11355372,163.57,163.56,8.9984933]
[1754119277158,4.11239556,163.6,163.53,26.0]
[1754119277455,43.66,163.61,163.56,0.69]
[1754119277631,0.68,163.6,163.56,8.9984933]
[1754119277839,8.9984933,163.57,163.52,8.9984933]
[1754119278175,8.9984933,163.54,163.49,0.69]
[1754119278459,0.68,163.53,163.49,9.6884933]
[1754119278842,43.68,163.57,163.52,8.9984933]
[1754119279035,8.9984933,163.55,163.52,0.69]
[1754119279364,8.9984933,163.53,163.5,0.69]
[1754119279754,8.9984933,163.51,163.48,43.68]
[1754119279948,8.9984933,163.49,163.46,0.69]
[1754119280558,8.9984933,163.48,163.46,0.69]
[1754119280756,8.9984933,163.48,163.44,52.6984933]
[1754119280942,8.9984933,163.48,163.44,53.3884933]
[1754119281137,8.9984933,163.48,163.44,52.6984933]
[1754119281346,8.9984933,163.48,163.45,0.69]
[1754119281573,8.9984933,163.49,163.46,0.69]
[1754119281864,43.7,163.53,163.47,9.6884933]
[1754119281865,8.9984933,163.52,163.47,9.6884933]
[1754119282161,8.9984933,163.52,163.48,9.6884933]
[1754119282353,8.9984933,163.52,163.49,0.69]
[1754119282553,43.7,163.53,163.5,0.69]
[1754119282747,5.12495289,163.61,163.51,0.69]
[1754119282952,8.9984933,163.56,163.51,9.6884933]
[1754119283174,8.9984933,163.56,163.52,9.6884933]
[1754119283670,52.6984933,163.59,163.54,8.9984933]
[1754119283870,43.7,163.59,163.55,9.6884933]
[1754119284072,43.7,163.59,163.56,9.6884933]
[1754119284451,43.7,163.59,163.56,0.69]
[1754119286172,43.7,163.59,163.56,9.6884933]
[1754119286485,53.3784933,163.59,163.54,8.9984933]
[1754119286652,53.3784933,163.59,163.54,9.6884933]
[1754119286850,53.3784933,163.59,163.54,0.69]
[1754119287068,53.3784933,163.59,163.54,9.6884933]
[1754119287267,8.9984933,163.57,163.53,26.0]
[1754119287469,8.9984933,163.57,163.5,16.78468397]
[1754119287470,8.9984933,163.55,163.51,0.69]
[1754119287653,0.68,163.56,163.5,9.6884933]
[1754119287861,8.9984933,163.55,163.5,34.9984933]
[1754119288063,8.9984933,163.56,163.51,9.6884933]
[1754119288246,8.9984933,163.58,163.53,8.9984933]
[1754119288445,8.9984933,163.58,163.54,9.6884933]
[1754119288878,8.9984933,163.56,163.51,0.69]
[1754119289056,0.68,163.56,163.51,9.6884933]
[1754119289258,9.6784933,163.56,163.51,9.6884933]
[1754119289472,44.38,163.59,163.52,9.6884933]
[1754119289674,8.9984933,163.57,163.53,8.9984933]
[1754119289877,8.9984933,163.57,163.54,0.69]
[1754119290374,8.9984933,163.56,163.51,9.6884933]
[1754119290680,9.6784933,163.56,163.52,9.6884933]
[1754119290888,8.9984933,163.58,163.54,8.9984933]
[1754119291179,52.6984933,163.59,163.55,0.69]
[1754119291378,9.7084933,163.58,163.53,8.9984933]
[1754119291679,43.7,163.59,163.54,9.6884933]
[1754119291680,52.6984933,163.59,163.54,9.6884933]
[1754119291980,8.9984933,163.58,163.54,0.69]
[1754119292172,9.7084933,163.57,163.53,8.9984933]
[1754119292678,0.71,163.57,163.53,9.6884933]
[1754119292880,8.9984933,163.58,163.53,8.9984933]
[1754119293183,44.41,163.59,163.54,9.6884933]
[1754119293184,53.4084933,163.59,163.54,9.6884933]
[1754119293390,0.71,163.58,163.54,9.6884933]
[1754119293566,43.7,163.59,163.55,8.9984933]
[1754119293759,52.6984933,163.59,163.55,9.6884933]
[1754119294100,52.6984933,163.59,163.57,8.9984933]
[1754119294101,43.7,163.59,163.57,8.9984933]
[1754119294264,43.7,163.59,163.57,9.6884933]
[1754119294779,8.9984933,163.61,163.57,9.6884933]
[1754119295276,44.38,163.62,163.57,9.6884933]
[1754119295477,43.67,163.62,163.58,0.69]
[1754119295680,8.9984933,163.61,163.57,8.9984933]
[1754119295972,44.38,163.62,163.57,8.9984933]
[1754119295973,53.3784933,163.62,163.58,8.9984933]
[1754119296278,53.3784933,163.62,163.57,0.69]
[1754119296485,53.3784933,163.62,163.57,9.6884933]
[1754119296987,43.67,163.62,163.58,9.6884933]
[1754119297154,43.67,163.62,163.54,26.0]
[1754119297155,43.67,163.62,163.59,0.69]
[1754119297355,43.67,163.62,163.59,9.6884933]
[1754119297582,0.03,163.62,163.59,9.6884933]
[1754119297798,0.03,163.62,163.6,9.6884933]
[1754119298083,0.03,163.62,163.61,8.9984933]
[1754119298294,0.03,163.62,163.61,9.6884933]
[1754119298657,0.03,163.62,163.61,8.9984933]
[1754119298862,0.03,163.62,163.59,0.69]
[1754119299074,0.03,163.62,163.61,8.9984933]
[1754119299764,0.03,163.62,163.61,9.6884933]
[1754119300283,0.03,163.62,163.61,8.9984933]
[1754119300776,9.7384933,163.62,163.58,34.9984933]
[1754119301080,0.71,163.61,163.58,34.9984933]
[1754119301288,9.7084933,163.61,163.57,8.9984933]
[1754119301462,0.71,163.61,163.57,8.9984933]
[1754119301863,9.0284933,163.62,163.58,0.69]
[1754119302091,9.0284933,163.62,163.58,9.6884933]
[1754119302653,0.03,163.62,163.59,9.6884933]
[1754119302870,0.03,163.62,163.6,0.69]
[1754119303055,0.03,163.62,163.6,9.6884933]
[1754119303997,9.7084933,163.61,163.56,8.9984933]
[1754119304162,0.03,163.62,163.57,0.69]
[1754119304362,0.03,163.62,163.59,8.9984933]
[1754119304591,0.03,163.62,163.59,9.6884933]
[1754119304780,0.03,163.62,163.6,0.69]
[1754119305493,0.03,163.62,163.6,8.9984933]
[1754119305785,0.03,163.62,163.61,0.69]
[1754119307302,0.03,163.62,163.6,8.9984933]
[1754119307604,0.03,163.62,163.6,0.69]
[1754119307792,0.03,163.62,163.6,9.6884933]
[1754119308101,0.03,163.62,163.6,8.9984933]
[1754119308315,0.03,163.62,163.61,9.6884933]
[1754119310095,0.03,163.62,163.61,0.69]
[1754119310314,0.03,163.62,163.61,9.6884933]
[1754119310477,0.03,163.62,163.61,0.69]
[1754119310680,0.03,163.62,163.61,9.6884933]
[1754119314614,0.03,163.62,163.6,26.0]
[1754119314909,0.03,163.62,163.59,9.6884933]
[1754119315614,0.03,163.62,163.59,8.9984933]
[1754119315778,0.03,163.62,163.6,0.69]
[1754119315974,0.03,163.62,163.6,9.6884933]
[1754119316212,0.03,163.62,163.61,0.69]
[1754119316391,0.03,163.62,163.61,9.6884933]
[1754119319017,0.03,163.62,163.61,8.9984933]
[1754119320001,0.03,163.62,163.61,0.69]
[1754119320230,0.03,163.62,163.61,9.6884933]
[1754119320926,0.03,163.62,163.61,7.69460485]
[1754119321720,0.03,163.62,163.61,0.69]
[1754119321933,0.03,163.62,163.6,7.00460485]
[1754119322453,0.73,163.62,163.58,26.0]
[1754119322621,7.00460485,163.59,163.54,0.66]
[1754119322811,7.70460485,163.59,163.55,7.66460485]
[1754119323622,7.70460485,163.59,163.55,0.66]
[1754119323837,0.7,163.58,163.55,26.0]
[1754119324011,7.70460485,163.58,163.55,26.0]
[1754119324334,0.03,163.62,163.51,44.26]
[1754119324335,7.00460485,163.56,163.51,44.26]
[1754119324522,7.70460485,163.56,163.51,51.26460485]
[1754119324715,7.00460485,163.55,163.51,44.26]
[1754119324919,12.38979409,163.55,163.51,44.26]
[1754119325115,11.68979409,163.54,163.51,44.26]
[1754119325314,0.7,163.57,163.51,55.94979409]
[1754119325716,11.68979409,163.56,163.51,55.94979409]
[1754119325924,11.68979409,163.56,163.52,0.66]
[1754119326124,0.7,163.58,163.52,12.34979409]
[1754119326318,11.68979409,163.55,163.52,0.66]
[1754119326521,11.68979409,163.55,163.53,0.66]
[1754119326764,11.68979409,163.54,163.51,43.6]
[1754119327046,11.68979409,163.53,163.5,26.0]
[1754119327258,11.68979409,163.51,163.47,0.72]
[1754119327426,11.68979409,163.53,163.49,11.68979409]
[1754119327753,101.50963686,163.61,163.48,0.66]
[1754119327754,12.38979409,163.58,163.52,11.68979409]
[1754119327932,12.38979409,163.58,163.53,12.34979409]
[1754119328549,11.68979409,163.57,163.54,0.66]
[1754119328846,0.7,163.58,163.54,0.66]
[1754119329021,11.68979409,163.57,163.54,0.66]
[1754119330222,11.68979409,163.55,163.51,11.68979409]
[1754119330419,11.68979409,163.55,163.5,11.68979409]
[1754119330632,11.68979409,163.6,163.5,11.68979409]
[1754119330837,11.68979409,163.55,163.51,0.66]
[1754119331149,12.38979409,163.55,163.51,0.66]
[1754119331929,12.38979409,163.55,163.48,26.0]
[1754119331930,11.68979409,163.52,163.48,0.66]
[1754119332142,11.68979409,163.51,163.48,0.66]
[1754119332443,12.38979409,163.52,163.48,0.66]
[1754119332754,11.68979409,163.51,163.47,0.06]
[1754119332957,11.68979409,163.51,163.47,12.40979409]
[1754119333133,11.68979409,163.51,163.48,0.66]
[1754119333332,12.38979409,163.52,163.48,0.66]
[1754119333918,11.68979409,163.52,163.48,12.34979409]
[1754119334349,11.68979409,163.53,163.48,12.34979409]
[1754119334656,0.7,163.55,163.49,0.66]
[1754119334948,11.68979409,163.53,163.49,0.66]
[1754119335521,11.68979409,163.53,163.47,0.06]
[1754119335522,11.68979409,163.55,163.51,11.68979409]
[1754119335744,11.68979409,163.55,163.51,12.34979409]
[1754119336046,0.7,163.57,163.52,12.34979409]
[1754119336220,11.68979409,163.56,163.52,0.66]
[1754119336424,12.38979409,163.56,163.52,0.66]
[1754119336639,0.7,163.58,163.52,11.68979409]
[1754119336854,11.68979409,163.57,163.53,0.66]
[1754119337881,12.38979409,163.57,163.53,0.66]
[1754119338038,0.7,163.57,163.53,12.34979409]
[1754119338730,11.68979409,163.58,163.53,0.66]
[1754119339050,11.68979409,163.56,163.51,37.68979409]
[1754119339557,0.7,163.55,163.51,37.68979409]
[1754119339751,11.68979409,163.56,163.51,37.68979409]
[1754119339921,12.38979409,163.57,163.52,12.34979409]
[1754119340123,12.38979409,163.57,163.53,0.66]
[1754119341351,146.8,163.59,163.54,12.34979409]
[1754119341533,43.6,163.61,163.57,11.68979409]
[1754119341740,43.6,163.61,163.57,12.34979409]
[1754119343956,0.7,163.6,163.56,11.68979409]
[1754119344843,0.7,163.6,163.56,12.34979409]
[1754119345028,43.6,163.61,163.56,11.68979409]
[1754119345366,0.7,163.59,163.55,11.68979409]
[1754119345655,0.7,163.59,163.55,12.34979409]
[1754119345955,11.68979409,163.56,163.53,26.0]
[1754119346327,11.68979409,163.56,163.51,12.34979409]
[1754119346669,12.38979409,163.56,163.51,12.34979409]
[1754119346835,0.7,163.55,163.5,43.6]
[1754119347157,0.7,163.55,163.51,7.01304782]
[1754119347356,0.7,163.55,163.5,77.27304782]
[1754119347357,7.71304782,163.55,163.5,77.27304782]
[1754119347948,7.01304782,163.56,163.51,7.67304782]
[1754119348148,7.71304782,163.56,163.51,7.57304782]
[1754119348353,7.01304782,163.57,163.52,7.67304782]
[1754119348654,7.01304782,163.57,163.53,33.67304782]
[1754119348853,7.01304782,163.55,163.47,16.84468397]
[1754119349150,7.01304782,163.54,163.5,33.01304782]
[1754119349354,7.01304782,163.54,163.5,33.67304782]
[1754119349534,7.71304782,163.54,163.5,26.66]
[1754119350552,7.01304782,163.54,163.5,26.66]
[1754119351243,7.01304782,163.6,163.48,0.69]
[1754119351244,0.68,163.53,163.48,0.69]
[1754119351552,7.01304782,163.52,163.49,0.69]
[1754119352058,7.01304782,163.53,163.49,7.70304782]
[1754119352553,7.01304782,163.55,163.5,7.70304782]
[1754119352723,7.01304782,163.56,163.51,7.70304782]
[1754119352927,0.68,163.56,163.51,0.69]
[1754119353334,7.01304782,163.55,163.51,0.69]
[1754119353537,7.01304782,163.53,163.49,33.01304782]
[1754119353742,7.69304782,163.53,163.49,33.01304782]
[1754119353971,0.68,163.52,163.47,33.07304782]
[1754119354262,7.01304782,163.51,163.47,33.76304782]
[1754119354562,7.69304782,163.52,163.48,0.69]
[1754119355058,7.01304782,163.53,163.49,0.69]
[1754119355236,44.28,163.55,163.5,7.70304782]
[1754119355431,51.29304782,163.55,163.51,0.69]
[1754119356247,7.01304782,163.57,163.53,7.01304782]
[1754119356439,7.01304782,163.57,163.53,7.70304782]
[1754119356646,7.01304782,163.56,163.51,0.69]
[1754119356845,7.01304782,163.56,163.52,7.70304782]
[1754119357066,7.01304782,163.57,163.53,7.70304782]
[1754119357568,7.01304782,163.57,163.53,0.69]
[1754119357748,7.69304782,163.57,163.53,0.69]
[1754119358061,7.69304782,163.57,163.52,7.01304782]
[1754119358260,7.69304782,163.56,163.52,7.01304782]
[1754119358438,7.69304782,163.56,163.51,7.01304782]
[1754119358760,0.68,163.55,163.51,7.01304782]
[1754119359463,7.01304782,163.55,163.51,7.70304782]
[1754119359636,7.01304782,163.56,163.52,0.69]
[1754119359840,153.11304782,163.58,163.53,7.70304782]
[1754119360038,153.11304782,163.58,163.54,7.70304782]
[1754119360666,146.78,163.58,163.54,7.70304782]
[1754119360965,146.1,163.58,163.54,7.70304782]
[1754119361468,0.68,163.57,163.53,7.01304782]
[1754119361635,7.69304782,163.56,163.49,0.69]
[1754119361830,7.69304782,163.55,163.5,7.01304782]
[1754119362135,7.01304782,163.53,163.49,26.0]
[1754119362335,0.68,163.52,163.48,7.01304782]
[1754119362566,7.01304782,163.53,163.49,7.01304782]
[1754119362752,0.68,163.52,163.48,7.01304782]
[1754119362939,7.01304782,163.53,163.48,7.70304782]
[1754119363139,7.01304782,163.53,163.49,0.69]
[1754119363969,7.69304782,163.53,163.49,0.69]
[1754119365672,43.58,163.57,163.47,33.07304782]
[1754119365673,7.69304782,163.52,163.47,33.07304782]
[1754119365967,7.69304782,163.52,163.47,33.76304782]
[1754119366145,7.69304782,163.51,163.47,33.76304782]
[1754119366546,7.69304782,163.51,163.47,26.06]
[1754119367255,7.01304782,163.49,163.47,0.06]
[1754119368157,7.69304782,163.49,163.47,0.06]
[1754119368468,7.69304782,163.48,163.47,0.06]
[1754119369574,0.68,163.48,163.47,0.06]
[1754119370378,7.69304782,163.48,163.47,0.06]
[1754119372764,0.68,163.48,163.47,0.06]
[1754119372962,4.11136204,163.51,163.47,0.06]
[1754119373265,7.69304782,163.48,163.47,0.06]
[1754119374958,11.80163006,163.48,163.47,0.06]
[1754119375357,7.69304782,163.48,163.47,0.06]
[1754119375877,0.68,163.5,163.47,0.06]
[1754119376065,7.01304782,163.48,163.47,0.06]
[1754119376877,153.11304782,163.5,163.47,0.06]
[1754119377079,189.7,163.5,163.47,0.75]
[1754119377267,189.7,163.5,163.47,0.06]
[1754119377460,189.7,163.5,163.47,0.75]
[1754119378461,196.71304782,163.5,163.47,0.75]
[1754119378871,146.1,163.5,163.48,0.69]
[1754119379182,43.6,163.51,163.49,0.69]
[1754119380381,43.6,163.51,163.48,7.01304782]
[1754119380562,7.70304782,163.5,163.47,0.06]
[1754119380879,7.01304782,163.49,163.47,0.06]
[1754119381079,7.01304782,163.48,163.47,0.06]
[1754119381286,7.70304782,163.48,163.47,0.06]
[1754119381954,189.7,163.51,163.47,0.06]
[1754119381955,190.39,163.51,163.47,0.06]
[1754119382261,7.01304782,163.48,163.47,0.06]
[1754119382461,50.59304782,163.48,163.47,0.06]
[1754119382678,51.28304782,163.48,163.47,0.06]
[1754119384076,44.27,163.48,163.47,0.06]
[1754119384276,43.58,163.48,163.47,0.06]
[1754119384659,146.79,163.51,163.47,0.06]
[1754119384876,146.1,163.51,163.47,0.06]
[1754119385082,50.59304782,163.5,163.47,0.75]
[1754119385281,50.59304782,163.5,163.47,0.06]
[1754119385483,43.58,163.5,163.48,0.69]
[1754119385787,43.58,163.5,163.47,0.06]
[1754119385788,43.58,163.5,163.49,0.69]
[1754119385997,43.58,163.53,163.49,7.70304782]
[1754119386169,50.59304782,163.53,163.49,7.70304782]
[1754119386858,50.59304782,163.53,163.5,0.69]
[1754119387285,43.58,163.53,163.5,7.01304782]
[1754119387489,43.58,163.53,163.5,7.70304782]
[1754119387691,7.01304782,163.55,163.51,0.69]
[1754119387988,50.59304782,163.55,163.52,0.69]
[1754119388495,43.58,163.55,163.53,0.69]
[1754119389570,43.58,163.55,163.51,7.70304782]
[1754119389770,43.58,163.55,163.52,0.69]
[1754119389970,43.58,163.55,163.52,7.70304782]
[1754119390295,0.03,163.53,163.52,7.70304782]
[1754119393704,0.03,163.53,163.52,7.01304782]
[1754119394014,0.03,163.53,163.52,7.70304782]
[1754119396976,0.03,163.53,163.52,7.01304782]
[1754119397515,0.72,163.53,163.5,7.01304782]
[1754119398011,0.03,163.53,163.5,7.70304782]
[1754119398388,0.03,163.53,163.51,7.01304782]
[1754119398876,0.03,163.53,163.49,26.0]
[1754119399080,0.03,163.53,163.51,7.01304782]
[1754119399498,0.03,163.53,163.52,7.70304782]
[1754119399804,0.03,163.53,163.52,0.69]
[1754119399999,0.03,163.53,163.5,7.70304782]
[1754119400418,0.03,163.53,163.51,7.01304782]
[1754119401391,0.03,163.53,163.51,7.70304782]
[1754119402803,0.03,163.53,163.51,7.01304782]
[1754119403993,0.03,163.53,163.51,7.70304782]
[1754119404402,0.03,163.53,163.49,26.69]
[1754119404594,0.03,163.55,163.54,26.0]
[1754119404793,0.03,163.55,163.54,33.70304782]
[1754119409708,0.03,163.55,163.54,50.48773179]
[1754119411409,0.03,163.55,163.54,33.66304782]
[1754119411593,0.03,163.55,163.54,33.01304782]
[1754119411798,0.03,163.55,163.54,33.66304782]
[1754119416916,50.36304782,163.61,163.54,33.66304782]
[1754119417090,50.36304782,163.61,163.57,7.01304782]
[1754119418818,0.32,163.6,163.57,7.01304782]
[1754119419116,146.13,163.62,163.58,7.66304782]
[1754119419295,146.45,163.62,163.58,7.01304782]
[1754119420489,146.45,163.62,163.57,26.65]
[1754119420699,146.45,163.62,163.58,7.01304782]
[1754119421111,0.03,163.62,163.59,7.01304782]
[1754119421313,0.03,163.62,163.6,7.66304782]
[1754119421697,0.03,163.62,163.6,7.01304782]
[1754119422500,0.03,163.62,163.59,7.01304782]
[1754119423019,0.03,163.62,163.6,7.01304782]
[1754119423198,0.03,163.62,163.6,0.65]
[1754119423401,0.03,163.62,163.6,7.01304782]
[1754119423612,0.03,163.62,163.6,7.66304782]
[1754119424625,0.03,163.62,163.61,7.66304782]
[1754119426101,0.03,163.62,163.61,7.01304782]
[1754119426433,0.03,163.62,163.6,7.01304782]
[1754119426834,0.03,163.62,163.61,0.65]
[1754119427427,0.03,163.62,163.61,7.66304782]
[1754119430636,0.03,163.62,163.61,7.01304782]
[1754119430927,0.03,163.62,163.61,7.66304782]
[1754119432005,0.03,163.62,163.61,24.44773179]
[1754119432205,0.03,163.62,163.61,67.94773179]
[1754119434231,0.03,163.62,163.61,74.05982762]
[1754119434936,0.03,163.62,163.61,74.11982762]
[1754119436123,0.03,163.62,163.61,68.00773179]
[1754119438133,0.03,163.62,163.61,74.11982762]
[1754119439652,0.32,163.71,163.64,26.0]
[1754119439817,0.32,163.71,163.69,7.01304782]
[1754119440435,0.32,163.71,163.68,7.01304782]
[1754119440647,0.32,163.7,163.66,50.49304782]
[1754119440818,7.01304782,163.69,163.64,69.48]
[1754119441136,7.01304782,163.7,163.65,7.01304782]
[1754119441929,146.1,163.72,163.65,7.01304782]
[1754119442238,7.01304782,163.68,163.64,50.49304782]
[1754119442444,7.01304782,163.68,163.62,26.0]
[1754119442615,7.01304782,163.65,163.61,0.06]
[1754119442817,7.01304782,163.66,163.61,7.07304782]
[1754119443133,43.48,163.68,163.64,7.01304782]
[1754119443753,7.01304782,163.65,163.61,7.07304782]
[1754119444232,43.48,163.68,163.64,7.01304782]
[1754119444436,50.49304782,163.68,163.63,7.01304782]
[1754119444813,43.48,163.68,163.66,7.01304782]
[1754119445123,7.01304782,163.7,163.66,7.01304782]
[1754119445917,7.01304782,163.7,163.65,7.01304782]
[1754119447524,7.01304782,163.71,163.66,7.01304782]
[1754119447728,196.59304782,163.72,163.67,7.72304782]
[1754119448032,7.01304782,163.7,163.65,7.01304782]
[1754119448239,7.01304782,163.7,163.65,7.72304782]
[1754119448439,7.01304782,163.7,163.66,7.01304782]
[1754119448758,7.01304782,163.71,163.66,7.72304782]
[1754119448919,7.01304782,163.71,163.67,0.71]
[1754119449248,189.58,163.72,163.69,7.01304782]
[1754119449623,189.58,163.72,163.69,7.72304782]
[1754119450330,189.58,163.72,163.68,7.01304782]
[1754119450529,189.58,163.72,163.68,7.72304782]
[1754119450732,189.58,163.72,163.69,7.72304782]
[1754119451031,50.47304782,163.75,163.7,7.72304782]
[1754119451234,4.10513998,163.74,163.7,7.72304782]
[1754119451751,4.10513998,163.74,163.67,26.0]
[1754119451947,7.01304782,163.73,163.69,7.01304782]
[1754119452121,43.46,163.75,163.68,7.72304782]
[1754119452441,11.11735829,163.74,163.69,7.72304782]
[1754119452640,7.01304782,163.74,163.69,7.72304782]
[1754119452826,7.01304782,163.73,163.68,7.01304782]
[1754119453225,7.01304782,163.73,163.69,0.71]
[1754119453633,7.01304782,163.74,163.69,7.72304782]
[1754119455855,43.46,163.75,163.69,7.72304782]